fUSD/lending_fUSD_20241021
["ID","MTS","AMOUNT","RATE_DAILY","PERIOD"]
[340623395,1729547432004,-500.0,0.000359,3]
[340623396,1729547432013,-2250.0,0.0003762,2]
[340623397,1729547432024,-338.76,0.00038633,2]
[340623398,1729547432033,-279.86918517,0.00038999,4]
[340623399,1729547432042,-819.5212867,0.00039,40]
[340623400,1729547432052,-214.9747,0.00039352,120]
[340623401,1729547432061,-2604.899,0.00039451,54]
[340623402,1729547432070,-1277.70153619,0.00039452,30]
[340623403,1729547432081,-1560.30256816,0.00039452,30]
[340623404,1729547432090,-524.47243184,0.00039452,30]
[340623405,1729547432101,-541.94341853,0.00039452,30]
[340623406,1729547432111,-150.0,0.00039832,4]
[340623407,1729547432120,-611.33042846,0.00039832,2]
[340623408,1729547432131,-1103.55713475,0.00039832,2]
[340623409,1729547432150,-137.53243679,0.00039832,2]
[340623410,1729547432160,-177.47,0.00039975,2]
[340623411,1729547432169,-1110.75906945,0.0004,30]
[340623412,1729547432180,-331.10016499,0.0004,30]
[340623413,1729547432189,-567.85087107,0.00040234,2]
[340623414,1729547432201,-188.63912893,0.00040234,2]
[340623415,1729547432209,-419.70483454,0.00040234,2]
[340623416,1729547432220,-95.63516546,0.00040234,2]
[340623417,1729547432230,-424.52,0.00040234,2]
[340623418,1729547432239,-756.49,0.00040234,2]
[340623419,1729547432249,-752.72,0.00040234,2]
[340623420,1729547432258,-424.52,0.00040234,2]
[340623421,1729547432268,-424.52,0.00040234,2]
[340623423,1729547432277,-1000.0,0.00040279,7]
[340623424,1729547432288,-500.0,0.000403,5]
[340623425,1729547432297,-500.0,0.000403,2]
[340623426,1729547432306,-1358.40700189,0.0004036,2]
[340623427,1729547432317,-1266.59299811,0.0004036,2]
[340623428,1729547432327,-153.05,0.00040371,2]
[340623429,1729547432336,-159.66,0.0004057,2]
[340623430,1729547432346,-150.03,0.00040799,2]
[340623431,1729547432356,-338.76,0.00040897,2]
[340623432,1729547432366,-151.0,0.00040904,120]
[340623433,1729547432376,-1000.0,0.00040999,120]
[340623434,1729547432385,-15.08275545,0.00041004,2]
[340623435,1729547432395,-563.10986677,0.00041004,2]
[340623436,1729547432406,-1380.08737778,0.00041004,2]
[340623437,1729547432419,-189.22796674,0.00041134,3]
[340623438,1729547432430,-112.99742171,0.00041135,2]
[340623439,1729547432442,-399.08111176,0.00041135,2]
[340623440,1729547432454,-19381.38112622,0.00041135,2]
[340623441,1729547432470,-849.36959246,0.00041135,2]
[340623442,1729547432480,-663.67270921,0.00041135,2]
[340623443,1729547432492,-1362.38424677,0.00041135,2]
[340623444,1729547432519,-1131.11379187,0.00041135,2]
[340623445,1729547432528,-1000.0,0.00041158,2]
[340623446,1729547432537,-155.14641856,0.000412,10]
[340623447,1729547432546,-250.0,0.00041236,120]
[340623448,1729547432555,-229.41764067,0.00041251,2]
[340623450,1729547437967,-2000.0,0.000301,30]
[340623451,1729547437977,-2000.0,0.000342,30]
[340623452,1729547437986,-1000.0,0.000384,30]
[340623453,1729547437995,-1000.0,0.00041134,3]
[340623454,1729547438005,-20.58235933,0.00041251,2]
[340623455,1729547438014,-250.0,0.00041326,2]
[340623456,1729547438023,-161.08,0.00041398,120]
[340623457,1729547438032,-174.57,0.00041415,120]
[340623458,1729547438042,-1664.13328305,0.000416,2]
[340623459,1729547438053,-587.83016339,0.000416,2]
[340623475,1729547439961,-337.374,0.000416,2]
[340623476,1729547440134,-534.30484756,0.00041251,2]
[340623477,1729547440147,-465.69515244,0.00041251,2]
[340623478,1729547440157,-410.66255356,0.000416,2]
[340623479,1729547440167,-505.36067579,0.0004167,10]
[340623480,1729547440176,-500.0,0.0004167,2]
[340623481,1729547440185,-150.0,0.00041812,120]
[340623482,1729547440194,-150.0,0.00042067,120]
[340623483,1729547440203,-151.06,0.00042253,2]
[340623484,1729547440213,-193.41,0.00042291,2]
[340623485,1729547440223,-1000.0,0.000425,30]
[340623486,1729547440233,-387.119315,0.00042562,30]
[340623487,1729547440243,-150.0,0.00042663,2]
[340623488,1729547440253,-387.119315,0.00043094,30]
[340623489,1729547440263,-1825.84758218,0.00043099,2]
[340623490,1729547440273,-338.76,0.0004316,2]
[340623491,1729547440282,-155.35,0.00043444,120]
[340623492,1729547440296,-387.119315,0.00043626,30]
[340623493,1729547440306,-608.8038,0.00043888,30]
[340623494,1729547440315,-161.08,0.00043982,120]
[340623495,1729547440325,-387.119315,0.00044158,30]
[340623496,1729547440335,-3000.0,0.000444,2]
[340623497,1729547440345,-387.119315,0.0004469,30]
[340623498,1729547440354,-338.76,0.00045424,2]
[340623499,1729547440364,-158.77056859,0.00045479,60]
[340623500,1729547440374,-858.60320254,0.000456,2]
[340623501,1729547440386,-1218.43569746,0.000456,2]
[340623502,1729547440395,-297.3442106,0.0004569,2]
[340623503,1729547440406,-270.525589,0.0004569,2]
[340623504,1729547440422,-2527.1645004,0.0004569,2]
[340623505,1729547440431,-1116.0346,0.0004569,2]
[340623506,1729547440441,-872.70188271,0.000457,2]
[340623507,1729547442965,-2854.01146556,0.000457,2]
[340623509,1729547443868,-2394.14695173,0.000457,2]
[340623510,1729547443877,-6152.7626,0.000457,2]
[340623511,1729547443886,-773.32,0.0004579,30]
[340623512,1729547443895,-620.039,0.000458,2]
[340623513,1729547443904,-4846.652,0.000458,2]
[340623514,1729547443915,-7572.9614,0.000458,2]
[340623515,1729547443925,-1220.4212,0.000458,2]
[340623516,1729547443935,-25957.687,0.000458,2]
[340623517,1729547443945,-3167.0994,0.000458,2]
[340623518,1729547443954,-336.3384,0.000458,2]
[340623519,1729547443965,-170.95,0.00045809,2]
[340623520,1729547443974,-250.0,0.00046,30]
[340623521,1729547443983,-158.77056859,0.00046082,60]
[340623522,1729547443992,-150.0,0.00046156,120]
[340623523,1729547444002,-1000.0,0.00046302,2]
[340623524,1729547444012,-151.0,0.00046356,120]
[340623525,1729547444021,-8713.35604676,0.00046459,15]
[340623526,1729547444031,-2299.55,0.00046549,10]
[340623527,1729547444041,-560.0,0.00046559,2]
[340623528,1729547444050,-448.054,0.00046559,2]
[340623529,1729547444060,-454.792,0.00046559,2]
[340623530,1729547444069,-1245.0,0.00046559,2]
[340623531,1729547444078,-150.0,0.00046559,2]
[340623532,1729547444088,-555.0,0.00046559,2]
[340623533,1729547444098,-936.0,0.00046559,2]
[340623534,1729547444108,-3358.0,0.00046559,2]
[340623535,1729547444119,-1909.0,0.00046559,2]
[340623536,1729547444128,-809.0,0.00046559,2]
[340623537,1729547444137,-5887.0,0.00046559,2]
[340623538,1729547444147,-1151.0,0.00046559,2]
[340623539,1729547444156,-150.0,0.00046559,2]
[340623540,1729547444165,-13537.0,0.00046559,2]
[340623541,1729547444175,-161.08,0.00046566,120]
[340623542,1729547444184,-150.0,0.00046726,7]
[340623543,1729547444194,-150.0,0.00046745,7]
[340623544,1729547444203,-150.0,0.00046751,7]
[340623545,1729547444213,-150.0,0.00046752,7]
[340623546,1729547444223,-150.0,0.00046759,7]
[340623547,1729547444232,-150.0,0.00046764,7]
[340623548,1729547444243,-150.0,0.00046772,7]
[340623549,1729547444253,-150.0,0.00046781,7]
[340623550,1729547444263,-150.0,0.0004679,7]
[340623551,1729547444272,-1000.0,0.0004679,2]
[340623552,1729547444282,-2500.0,0.0004679,2]
[340623553,1729547444294,-165.98109859,0.00046799,28]
[340623554,1729547444303,-628.72896212,0.000468,19]
[340623555,1729547444312,-3497.970885,0.000468,2]
[340623556,1729547444321,-7500.0,0.000468,120]
[340623557,1729547444331,-150.0,0.00046807,7]
[340623558,1729547444341,-405.19345943,0.00046817,2]
[340623559,1729547444351,-150.0,0.0004686,7]
[340623560,1729547444360,-150.0,0.00046863,7]
[340623561,1729547444371,-499.72249718,0.00046873,10]
[340623562,1729547444380,-500.0,0.00046873,5]
[340623563,1729547444390,-500.0,0.00046873,10]
[340623564,1729547444399,-334.33130188,0.00046873,2]
[340623565,1729547444408,-2500.0,0.00046889,120]
[340623566,1729547444417,-210.0,0.00046899,2]
[340623567,1729547444427,-500.0,0.00046899,120]
[340623568,1729547444436,-500.0,0.00046899,120]
[340623569,1729547444445,-158.07086068,0.00046899,120]
[340623570,1729547444454,-2454.76572944,0.00046899,120]
[340623571,1729547444463,-303367.224,0.000469,2]
[340623572,1729547444472,-1429.9447,0.000469,2]
[340623573,1729547444481,-26143.2862,0.000469,2]
[340623574,1729547444490,-150.0,0.00046916,7]
[340623575,1729547444500,-150.0,0.00046938,7]
[340623576,1729547444509,-150.0,0.00046949,7]
[340623577,1729547444518,-150.0,0.00046956,7]
[340623578,1729547444527,-150.0,0.00046967,120]
[340623579,1729547444536,-8713.35604671,0.00046978,15]
[340623580,1729547444545,-150.0,0.00046979,7]
[340623581,1729547444554,-150.0,0.00046988,7]
[340623582,1729547444563,-217.52456672,0.00046989,2]
[340623583,1729547444572,-3038.13311348,0.00046989,2]
[340623584,1729547444582,-1000.0,0.00046999,120]
[340623585,1729547444591,-8254.4437542,0.00047011,2]
[340623586,1729547444600,-51132.7116137,0.00047011,2]
[340623587,1729547444610,-632.59163214,0.00047011,2]
[340623588,1729547444619,-7128.2707818,0.00047011,2]
[340623589,1729547444628,-165.98109859,0.00047013,28]
[340623590,1729547444639,-630.77580506,0.00047044,120]
[340623591,1729547444648,-150.51,0.0004709,2]
[340623592,1729547444658,-173.64348996,0.0004709,2]
[340623593,1729547444667,-3000.0,0.000471,2]
[340623594,1729547444678,-150.0,0.000471,7]
[340623595,1729547444687,-150.0,0.00047104,120]
[340623596,1729547444825,-150.0,0.00047105,7]
[340623597,1729547444836,-150.0,0.00047162,7]
[340623598,1729547444846,-150.0,0.00047164,7]
[340623599,1729547444856,-150.0,0.00047166,7]
[340623600,1729547444865,-325.0,0.00047184,7]
[340623601,1729547444875,-150.0,0.00047198,7]
[340623602,1729547444885,-150.0,0.00047206,7]
[340623603,1729547444895,-150.0,0.00047214,7]
[340623604,1729547444905,-150.0,0.00047226,7]
[340623605,1729547444915,-165.98109859,0.00047228,28]
[340623606,1729547444924,-218.28,0.00047241,120]
[340623607,1729547444933,-150.0,0.00047241,14]
[340623608,1729547444948,-150.0,0.00047242,7]
[340623609,1729547444958,-150.0,0.00047262,7]
[340623610,1729547444968,-176.36841774,0.0004729,23]
[340623611,1729547444978,-169.56295467,0.00047293,25]
[340623612,1729547444988,-150.0,0.00047294,7]
[340623613,1729547444997,-150.0,0.00047307,7]
[340623614,1729547445007,-150.0,0.00047321,7]
[340623615,1729547445017,-150.0,0.00047323,7]
[340623616,1729547445026,-150.0,0.00047355,14]
[340623617,1729547445036,-100000.0,0.00047379,2]
[340623618,1729547445048,-150.0,0.00047386,7]
[340623619,1729547445059,-152.80288962,0.0004739,14]
[340623620,1729547445069,-150.51,0.0004739,2]
[340623621,1729547445079,-37659.1972,0.0004739,2]
[340623622,1729547445089,-150.0,0.00047394,7]
[340623623,1729547445099,-2000.0,0.00047399,120]
[340623624,1729547445110,-245000.0,0.000474,2]
[340623625,1729547445120,-500.0,0.000474,2]
[340623626,1729547445130,-1000.0,0.000474,2]
[340623627,1729547445141,-791.5347,0.000474,2]
[340623628,1729547445150,-88888.0,0.000474,120]
[340623629,1729547445160,-150.0,0.00047404,7]
[340623630,1729547445170,-150.0,0.00047405,7]
[340623631,1729547445180,-996.77205123,0.00047435,14]
[340623632,1729547445190,-150.0,0.00047438,14]
[340623633,1729547445200,-150.0,0.00047442,7]
[340623634,1729547445210,-165.98109859,0.00047442,28]
[340623635,1729547445220,-150.0,0.00047443,7]
[340623636,1729547445231,-150.0,0.00047475,7]
[340623637,1729547445241,-150.0,0.00047477,7]
[340623638,1729547445251,-512.25867946,0.00047479,30]
[340623639,1729547445261,-150.0,0.00047479,30]
[340623640,1729547445272,-236.54303976,0.00047479,30]
[340623641,1729547445282,-150.0,0.00047479,30]
[340623642,1729547445295,-150.0,0.00047479,30]
[340623643,1729547445305,-150.0,0.00047479,30]
[340623644,1729547445315,-150.0,0.00047479,30]
[340623645,1729547445325,-150.0,0.00047479,30]
[340623646,1729547445335,-150.0,0.00047479,30]
[340623647,1729547445344,-247.03959563,0.00047479,30]
[340623648,1729547445354,-150.0,0.00047479,30]
[340623649,1729547445364,-150.0,0.00047482,7]
[340623650,1729547445373,-512.25867946,0.00047489,30]
[340623651,1729547445383,-236.54303976,0.00047489,30]
[340623652,1729547445392,-1007.14475404,0.0004749,30]
[340623653,1729547445402,-150.51,0.0004749,2]
[340623654,1729547445411,-150.51,0.0004749,2]
[340623655,1729547445421,-150.51,0.0004749,2]
[340623656,1729547445431,-150.0,0.00047496,30]
[340623657,1729547445440,-8713.35604671,0.00047497,15]
[340623658,1729547445450,-512.25867946,0.00047499,30]
[340623659,1729547445460,-236.54303976,0.00047499,30]
[340623660,1729547445470,-50000.0,0.000475,37]
[340623661,1729547445479,-50000.0,0.000475,47]
[340623662,1729547445490,-50000.0,0.000475,57]
[340623663,1729547445499,-181187.99545787,0.000475,2]
[340623664,1729547445513,-55685.51,0.000475,2]
[340623665,1729547445529,-150.0,0.00046856,7]
[340623666,1729547445539,-1813.95623651,0.000475,2]
[340623667,1729547445551,-1058.88,0.000475,2]
[340623668,1729547445562,-796.068646,0.000475,2]
[340623669,1729547445574,-520.26401847,0.000475,2]
[340623670,1729547445593,-150.0,0.00046741,7]
[340623671,1729547445603,-150.0,0.00046819,7]
[340623672,1729547445612,-1055.52,0.000475,2]
[340623673,1729547445865,-150.0,0.00046758,7]
[340623674,1729547445874,-150.0,0.00046853,7]
[340623675,1729547445883,-150.0,0.0004691,7]
[340623676,1729547445892,-15880.8655342,0.000475,2]
[340623677,1729547445904,-20353.06254934,0.000475,2]
[340623678,1729547445930,-606.37577,0.00043094,30]
[340623679,1729547446044,-393.62423,0.00043094,30]
[340623680,1729547446055,-648.22745291,0.000475,2]
[340623681,1729547446067,-276.75,0.000475,2]
[340623682,1729547446105,-211153.90161543,0.000475,2]
[340623683,1729547446116,-669.58337309,0.000475,2]
[340623684,1729547446217,-290.69621568,0.000475,2]
[340623685,1729547448208,150.0,0.0001726,2]
[340623692,1729547479656,250.0,0.0001,2]
[340623693,1729547848025,489.0,0.000191,2]
[340623694,1729547848516,465.0,0.000191,2]
[340623695,1729547868083,329.6,0.00025,120]
[340623697,1729547971008,159.26,0.00010959,2]
[340623698,1729548003531,500.0,0.0001726,2]
[340623699,1729548006469,500.0,0.0001726,2]
[340623704,1729548386325,159.0,0.0002,4]
[340623705,1729548395180,159.0,0.00025,10]
[340623707,1729548435181,159.0,0.00025,10]
[340623717,1729548461374,161.02371455,0.00025,10]
[340623725,1729548541239,1894.61,0.00023,2]
[340623726,1729548547864,160.68,0.00010959,2]
[340623752,1729548632087,-180.05,0.00034851,2]
[340623753,1729548632099,-340.58,0.0003924,2]
[340623754,1729548632109,-375.50144154,0.0004,120]
[340623755,1729548632120,-1124.49855846,0.0004,120]
[340623756,1729548632129,-121.07024854,0.00040952,2]
[340623757,1729548632143,-28.94975146,0.00040952,2]
[340623758,1729548632154,-229.76,0.00041158,2]
[340623759,1729548632163,-340.58,0.00041504,2]
[340623760,1729548632173,-762.79,0.00043143,2]
[340623761,1729548632182,-1343.53,0.00043177,2]
[340623762,1729548632191,-57.57117142,0.00043187,2]
[340623763,1729548635274,-192.42882858,0.00043187,2]
[340623764,1729548635284,-652.0,0.00043227,30]
[340623765,1729548635295,-2104.3738248,0.0004331,2]
[340623766,1729548635308,-3753.76120749,0.0004331,2]
[340623767,1729548635320,-10774.44975929,0.0004331,2]
[340623768,1729548635331,-7267.41520842,0.0004331,2]
[340623769,1729548635341,-157.0,0.00043342,2]
[340623770,1729548635351,-250.0,0.0004351,120]
[340623771,1729548635360,-499.99,0.0004351,2]
[340623772,1729548635369,-1723.38,0.0004355,2]
[340623773,1729548635379,-1000.0,0.00043597,7]
[340623774,1729548635389,-156.31,0.00043606,120]
[340623775,1729548635398,-711.29,0.00043747,2]
[340623776,1729548635407,-340.58,0.00043768,2]
[340623777,1729548635417,-155.35,0.00043815,120]
[340623778,1729548635426,-158.91,0.00043858,2]
[340623779,1729548635436,-250.0,0.00044054,2]
[340623780,1729548635445,-795.0,0.00044054,4]
[340623781,1729548635454,-738.10263716,0.00044745,71]
[340623782,1729548635466,-1345.81636284,0.00044745,71]
[340623783,1729548635475,-1000.0,0.00044745,2]
[340623784,1729548635485,-644.9483,0.00044866,120]
[340623786,1729548635494,-103.86749007,0.0004489,2]
[340623823,1729548638166,-450.0,0.00043597,7]
[340623824,1729548638176,-549.99999999,0.0004489,2]
[340623825,1729548638187,-2046.36220994,0.0004489,2]
[340623826,1729548638196,-7135.36836543,0.00044899,15]
[340623827,1729548638206,-3152.844,0.00044928,30]
[340623828,1729548638215,-227.48689619,0.00044973,2]
[340623829,1729548638224,-1916.29,0.0004498,10]
[340623830,1729548638233,-1596.91,0.0004498,10]
[340623831,1729548638243,-1330.76,0.0004498,10]
[340623832,1729548638252,-7842.6774184,0.0004499,9]
[340623833,1729548638263,-11216.25702667,0.0004499,9]
[340623834,1729548638274,-12612.34474342,0.0004499,9]
[340623835,1729548638284,-5005.0,0.0004499,9]
[340623836,1729548638408,-27093.76000201,0.0004499,9]
[340623837,1729548638484,-450.0,0.00043606,120]
[340623838,1729548638494,-1108.96,0.0004498,10]
[340623839,1729548638504,-99470.7423885,0.0004499,9]
[340623840,1729548638513,-150.51,0.0004499,2]
[340623841,1729548638522,-150.51,0.0004499,2]
[340623842,1729548638531,-500.0,0.00044999,31]
[340623843,1729548638541,-346.76585286,0.00044999,31]
[340623844,1729548638550,-250.0,0.00044999,120]
[340623845,1729548638560,-278.0,0.00045,7]
[340623846,1729548638568,-1000000.0,0.00045,120]
[340623847,1729548638578,-166.00503115,0.00045073,28]
[340623848,1729548638587,-586.81369796,0.00045173,17]
[340623849,1729548638597,-500.0,0.00045273,120]
[340623850,1729548638606,-7015.49658165,0.0004534,15]
[340623856,1729548640272,-119.87178373,0.0004534,15]
[340623857,1729548640282,-210.51,0.00045461,2]
[340623858,1729548640292,-750.0,0.00045547,120]
[340623859,1729548640302,-166.00503113,0.0004578,28]
[340623860,1729548640311,-625.80241721,0.00045781,15]
[340623861,1729548640323,-397.26503096,0.00045781,15]
[340623984,1729548643201,-150.02,0.00040952,2]
[340623985,1729548643210,-241.0,0.00045445,7]
[340623986,1729548643221,-6112.30091721,0.00045781,15]
[340623987,1729548643231,-1000.0,0.00045821,120]
[340623988,1729548643240,-55408.6211367,0.000459,120]
[340623989,1729548643922,-5188.36,0.000459,120]
[340623991,1729548646177,-2168.88438187,0.000459,120]
[340623992,1729548646414,-17385.68251884,0.000459,120]
[340623995,1729548647967,150.0,0.0001726,2]
[340623996,1729548708760,300.0,0.0001,2]
[340623997,1729548721774,300.0,0.00019725,2]
[340624003,1729548810222,305.74,0.00025,2]
[340624004,1729548817518,317.57824483,0.00027757,2]
[340624005,1729548910165,-300.0,0.00019725,2]
[340624006,1729548910223,-1011.0,0.00025,2]
[340624007,1729549048246,156.1,0.00010959,2]
[340624008,1729549229639,152.47,0.00019178,2]
[340624009,1729549282000,250.0,0.0001,2]
[340624010,1729549283095,300.0,0.00012,2]
[340624011,1729549284220,350.0,0.00014,2]
[340624012,1729549285304,400.0,0.00016,2]
[340624013,1729549286395,450.0,0.00018,2]
[340624014,1729549287469,500.0,0.0002,2]
[340624015,1729549288548,550.0,0.00022,2]
[340624017,1729549508484,45580.43,0.00011,2]
[340624018,1729549508518,4999287.06,0.00011,2]
[340624019,1729549508548,279343.67974316,0.00011,2]
[340624020,1729549509222,-6304.855,0.00011,2]
[340624069,1729549832314,-641.33,0.00010959,2]
[340624070,1729549832324,-23.24727663,0.00010999,2]
[340624071,1729549832334,-553.04234659,0.00010999,2]
[340624072,1729549832345,-562.21440665,0.00010999,2]
[340624073,1729549832359,-5221.07153573,0.00010999,2]
[340624074,1729549832370,-9951.80583293,0.00010999,2]
[340624075,1729549832381,-628.42,0.00010999,2]
[340624076,1729549832392,-8844.90904996,0.00010999,2]
[340624077,1729549832401,-150.0,0.00010999,2]
[340624078,1729549832409,-500.0,0.00010999,2]
[340624079,1729549832418,-500.0,0.00010999,2]
[340624080,1729549832427,-499.14692765,0.00010999,2]
[340624081,1729549832436,-500.0,0.00010999,2]
[340624082,1729549832446,-185.09634559,0.00010999,2]
[340624083,1729549832454,-60820.20374927,0.00011,2]
[340624084,1729549832465,-5395.38119057,0.00011,2]
[340624085,1729549832476,-1644.32044716,0.00011,2]
[340624086,1729549832583,-737.5985368,0.00011,2]
[340624087,1729549832598,-2984.3221489,0.00011,2]
[340624088,1729549832609,-4212.6311127,0.00011,2]
[340624089,1729549832619,-793.35,0.00011,2]
[340624090,1729549832630,-12379.10156961,0.00011,2]
[340624091,1729549832641,-7068.50393134,0.00011,2]
[340624092,1729549832651,-633.39617763,0.00011,2]
[340624093,1729549832663,-400.0,0.00011,2]
[340624094,1729549832674,-4363.30841209,0.00011,2]
[340624095,1729549832685,-1285.70283055,0.00011,2]
[340624096,1729549832695,-357.46371413,0.00011,2]
[340624097,1729549832706,-351.89855854,0.00011,2]
[340624098,1729549832717,-10402.4493057,0.00011,2]
[340624099,1729549832730,-2045.75766083,0.00011,2]
[340624100,1729549832744,-491128.19622222,0.00011,2]
[340624101,1729549832757,-588.74678369,0.00011,2]
[340624102,1729549832775,-1974.18309637,0.00011,2]
[340624103,1729549832787,-2248.6741294,0.00011,2]
[340624104,1729549832797,-750.26546194,0.00011,2]
[340624105,1729549832808,-1266.60175907,0.00011,2]
[340624106,1729549832819,-338.6678367,0.00011,2]
[340624107,1729549832830,-9227.77587217,0.00011,2]
[340624108,1729549832840,-11574.20259887,0.00011,2]
[340624109,1729549832851,-1274.32993384,0.00011,2]
[340624110,1729549832862,-2498.3477175,0.00011,2]
[340624111,1729549832873,-3372.54487743,0.00011,2]
[340624112,1729549832885,-2285.89488508,0.00011,2]
[340624113,1729549832896,-983.93,0.00011,2]
[340624114,1729549832911,-700.0,0.00011,2]
[340624117,1729549838357,-156.84422594,0.000109,2]
[340624118,1729549838367,-2600.74305385,0.00011,2]
[340624119,1729549838378,-18958.69146001,0.00011,2]
[340624120,1729549838389,-1311.26005332,0.00011,2]
[340624121,1729549838400,-1765.0,0.00011,2]
[340624122,1729549838465,-612.18240239,0.00011,2]
[340624123,1729549838477,-749.8412749,0.00011,2]
[340624124,1729549838488,-597.24,0.00011,2]
[340624125,1729549838498,-313.27,0.00011,2]
[340624126,1729549838509,-1120.66502401,0.00011,2]
[340624127,1729549838521,-254.99999,0.00011,2]
[340624128,1729549838532,-516.12578492,0.00011,2]
[340624129,1729549838543,-765.41975306,0.00011,2]
[340624130,1729549838555,-1340.01178555,0.00011,2]
[340624131,1729549838695,-5740.77834692,0.00011,2]
[340624132,1729549838707,-2040.59919619,0.00011,2]
[340624133,1729549838720,-8059.376716,0.00011,2]
[340624134,1729549838732,-1271.98830069,0.00011,2]
[340624135,1729549838744,-32082.67783202,0.00011,2]
[340624136,1729549838753,-103873.67393102,0.00011,2]
[340624137,1729549838765,-452.64,0.00011,2]
[340624138,1729549838777,-1632.18970442,0.00011,2]
[340624139,1729549838788,-879.14563992,0.00011,2]
[340624140,1729549838799,-2043.1272692,0.00011,2]
[340624141,1729549838810,-659.75132017,0.00011,2]
[340624142,1729549838823,-301158.6764363,0.00011,2]
[340624143,1729549838833,-16053.99680456,0.00011887,2]
[340624144,1729549838843,-306.44469223,0.0001198,2]
[340624145,1729549838853,-3379.89,0.00011987,2]
[340624146,1729549838862,-1280.75,0.00012086,2]
[340624147,1729549838872,-150.99,0.00012086,2]
[340624148,1729549838881,-575.21,0.00012086,2]
[340624149,1729549838890,-500.0,0.00012089,2]
[340624150,1729549838902,-160.91401182,0.00012089,2]
[340624151,1729549838912,-501.77689152,0.00012633,2]
[340624152,1729549838922,-1024.90848054,0.00015,2]
[340624153,1729549838931,-274126.80548427,0.000159,2]
[340624154,1729549838940,-16053.9968045,0.00015966,2]
[340624155,1729549838950,-200.0,0.0001634,2]
[340624156,1729549838959,-165.43,0.00019178,2]
[340624157,1729549838969,-336.79270927,0.0002,2]
[340624158,1729549838979,-150.52,0.0002,2]
[340624159,1729549838988,-150.52,0.0002,2]
[340624160,1729549839001,-16053.9968045,0.00020045,2]
[340624161,1729549839010,-150.0,0.00021266,2]
[340624162,1729549839020,-150.02,0.00021497,2]
[340624163,1729549839029,-218.7681429,0.00022248,2]
[340624164,1729549839038,-16053.9968045,0.00024125,2]
[340624165,1729549839048,-1251.29109552,0.0002425,4]
[340624166,1729549839057,-1251.29109553,0.0002425,4]
[340624167,1729549839067,-400.0,0.000245,2]
[340624168,1729549839076,-165.43,0.00024658,2]
[340624169,1729549839085,-218.7681429,0.00027378,2]
[340624170,1729549839095,-34682.42175517,0.00027757,2]
[340624171,1729549839106,-168.738,0.00028083,18]
[340624172,1729549839116,-2482.071,0.00028083,18]
[340624173,1729549839125,-748.24,0.00028083,2]
[340624175,1729549839135,-13008.55,0.00028083,2]
[340624177,1729549839144,-16053.9968045,0.00028204,2]
[340624179,1729549839153,-156.1,0.00028963,2]
[340624180,1729549839162,-672.7132,0.00029973,10]
[340624181,1729549839171,-7353.72865096,0.0003,2]
[340624183,1729549839181,-205.55670789,0.0003,2]
[340624185,1729549839190,-165.43,0.00030137,2]
[340624186,1729549839199,-16053.9968045,0.00032283,15]
[340624187,1729549839208,-150.02,0.00032408,2]
[340624188,1729549839217,-218.7681429,0.00032509,2]
[340624189,1729549839227,-8500.0,0.00033918,6]
[340624190,1729549839236,-2682.9335844,0.00033918,6]
[340624191,1729549839245,-5000.0,0.00034247,4]
[340624192,1729549839255,-260.0,0.00034247,2]
[340624193,1729549839264,-1044.999999,0.00034247,2]